bitfinex-derivatives/quotes_BTCF0:USTF0_20251228
["timestamp","ask_amount","ask_price","bid_price","bid_amount"]
[1766963550269,0.0113975,87800.0,87778.0,0.0114002]
[1766963550462,0.0572,87799.0,87778.0,0.0114002]
[1766963550868,0.0572,87799.0,87780.0,0.0113999]
[1766963551173,0.0572,87799.0,87782.0,0.0113997]
[1766963551376,0.0240513,87798.0,87782.0,0.0115706]
[1766963551566,0.0240513,87797.0,87782.0,0.0115706]
[1766963551767,0.0240513,87796.0,87782.0,0.0115706]
[1766963551974,0.0240513,87795.0,87782.0,0.0115706]
[1766963552170,0.0240513,87794.0,87782.0,0.0115706]
[1766963552479,0.0113978,87798.0,87782.0,0.0001709]
[1766963552675,0.02404653,87797.0,87782.0,0.0001709]
[1766963552874,0.02404653,87796.0,87782.0,0.0001709]
[1766963553077,0.02404653,87795.0,87782.0,0.0001709]
[1766963553277,0.02404653,87794.0,87782.0,0.0001709]
[1766963553579,0.02404521,87793.0,87782.0,0.0001709]
[1766963553774,0.0113978,87798.0,87782.0,0.0001709]
[1766963553977,0.02404521,87797.0,87782.0,0.0001709]
[1766963554178,0.02404521,87796.0,87782.0,0.0001709]
[1766963554379,0.02404521,87795.0,87782.0,0.0001709]
[1766963554562,0.0113978,87798.0,87782.0,0.0001709]
[1766963554563,0.02404521,87794.0,87782.0,0.0001709]
[1766963554767,0.0573709,87799.0,87782.0,0.0115706]
[1766963555072,0.02404443,87798.0,87782.0,0.0115706]
[1766963555276,0.02404443,87797.0,87782.0,0.0115706]
[1766963555477,0.02404443,87796.0,87782.0,0.0115706]
[1766963555667,0.02404443,87795.0,87782.0,0.0115706]
[1766963555865,0.0113977,87798.0,87782.0,0.0115706]
[1766963556075,0.02384714,87797.0,87782.0,0.0115706]
[1766963556380,0.02384714,87796.0,87782.0,0.0115706]
[1766963556570,0.02384714,87795.0,87782.0,0.0115706]
[1766963556770,0.0113977,87798.0,87782.0,0.0115706]
[1766963557076,0.02384781,87797.0,87782.0,0.0115706]
[1766963557271,0.02384781,87796.0,87782.0,0.0115706]
[1766963557476,0.02384781,87795.0,87782.0,0.0115706]
[1766963557678,0.0573709,87799.0,87782.0,0.0115706]
[1766963557879,0.02384919,87798.0,87782.0,0.0115706]
[1766963558073,0.02384919,87797.0,87782.0,0.0115706]
[1766963558272,0.02384919,87796.0,87782.0,0.0115706]
[1766963558474,0.02384919,87795.0,87782.0,0.0115706]
[1766963558669,0.02384919,87794.0,87782.0,0.0115706]
[1766963558875,0.0573709,87799.0,87782.0,0.0115706]
[1766963559084,0.02384957,87798.0,87782.0,0.0115706]
[1766963559381,0.02384957,87797.0,87782.0,0.0115706]
[1766963559581,0.02384957,87796.0,87782.0,0.0115706]
[1766963559783,0.02384957,87795.0,87782.0,0.0115706]
[1766963560083,0.0113978,87798.0,87782.0,0.0001709]
[1766963560275,0.02384912,87797.0,87782.0,0.0001709]
[1766963560476,0.02384912,87796.0,87782.0,0.0001709]
[1766963560680,0.02384912,87795.0,87782.0,0.0001709]
[1766963560875,0.0113978,87798.0,87782.0,0.0001709]
[1766963561074,0.02384945,87797.0,87782.0,0.0001709]
[1766963561275,0.02384945,87796.0,87782.0,0.0001709]
[1766963561478,0.0113978,87798.0,87782.0,0.0001709]
[1766963561479,0.02384945,87795.0,87782.0,0.0001709]
[1766963561684,0.0573709,87799.0,87782.0,0.0001709]
[1766963561685,0.0001709,87799.0,87788.0,0.0113989]
[1766963561881,0.0113962,87810.0,87789.0,0.0113987]
[1766963562068,0.0572,87812.0,87783.0,0.11391013]
[1766963562069,0.0572,87812.0,87785.0,0.0113993]
[1766963562268,0.0572,87812.0,87783.0,0.0572]
[1766963562668,0.0572,87812.0,87782.0,0.0001709]
[1766963562872,0.01310175,87811.0,87782.0,0.0001709]
[1766963563270,0.0113976,87800.0,87782.0,0.0001709]
[1766963566686,0.09919784,87803.0,87782.0,0.0001709]
[1766963566879,0.0113985,87793.0,87770.0,0.0114013]
[1766963567084,0.0113985,87793.0,87742.0,0.0114049]
[1766963567085,0.0113985,87793.0,87772.0,0.011401]
[1766963567879,0.0001709,87791.0,87774.0,0.0001709]
[1766963579592,0.0970909,87791.0,87774.0,0.0001709]
[1766963579795,0.0113995,87785.0,87771.0,0.15412]
[1766963579998,0.02416358,87784.0,87771.0,0.15412]
[1766963580195,0.0113995,87785.0,87771.0,0.15412]
[1766963580398,0.02416547,87784.0,87771.0,0.15412]
[1766963580600,0.0113995,87785.0,87771.0,0.15412]
[1766963580799,0.02416553,87784.0,87771.0,0.15412]
[1766963580996,0.0114004,87778.0,87762.0,0.09692]
[1766963581296,0.10294513,87781.0,87762.0,0.15408]
[1766963581496,0.0114006,87776.0,87753.0,0.09692]
[1766963581690,0.0114013,87771.0,87753.0,0.09692]
[1766963581893,0.0114015,87769.0,87744.0,0.15408]
[1766963582091,0.09692,87770.0,87750.0,0.10294513]
[1766963582291,0.0001709,87769.0,87751.0,0.0001709]
[1766963585605,0.0114017,87768.0,87751.0,0.0001709]
[1766963598306,0.0114019,87766.0,87751.0,0.0001709]
[1766963599814,0.0115724,87769.0,87751.0,0.0001709]
[1766963600420,0.0114023,87763.0,87751.0,0.0001709]
[1766963600619,0.10294513,87761.0,87744.0,0.15408]
[1766963601612,0.0114027,87760.0,87744.0,0.15408]
[1766963602417,0.0114027,87760.0,87743.0,0.0024503]
[1766963602716,0.10294513,87761.0,87737.0,0.0572]
[1766963602717,0.0114031,87757.0,87737.0,0.0572]
[1766963602916,0.0114031,87757.0,87737.0,0.0686055]
[1766963603709,0.0114031,87757.0,87739.0,0.0114053]
[1766963605425,0.0114031,87757.0,87738.0,0.0001709]
[1766963607426,0.0114031,87757.0,87738.0,0.0115763]
[1766963609233,0.02415157,87756.0,87738.0,0.0115763]
[1766963609424,0.0114031,87757.0,87738.0,0.0115763]
[1766963609622,0.02415006,87756.0,87738.0,0.0115763]
[1766963609822,0.0114031,87757.0,87738.0,0.0115763]
[1766963610020,0.02415006,87756.0,87738.0,0.0115763]
[1766963610221,0.0114031,87757.0,87738.0,0.0115763]
[1766963611315,0.02415453,87756.0,87738.0,0.0115763]
[1766963611517,0.0114031,87757.0,87738.0,0.0115763]
[1766963611825,0.02415343,87756.0,87738.0,0.0115763]
[1766963612023,0.0114031,87757.0,87738.0,0.0115763]
[1766963612226,0.02415343,87756.0,87738.0,0.0115763]
[1766963612417,0.0114031,87757.0,87738.0,0.0115763]
[1766963612617,0.02415346,87756.0,87738.0,0.0115763]
[1766963612817,0.0114031,87757.0,87738.0,0.0115763]
[1766963613018,0.02415346,87756.0,87738.0,0.0115763]
[1766963613226,0.0114031,87757.0,87738.0,0.0115763]
[1766963613424,0.02415377,87756.0,87738.0,0.0115763]
[1766963613618,0.0114031,87757.0,87738.0,0.0115763]
[1766963613818,0.02415377,87756.0,87738.0,0.0115763]
[1766963614019,0.0114031,87757.0,87738.0,0.0115763]
[1766963614332,0.02415377,87756.0,87738.0,0.0115763]
[1766963614520,0.011403,87758.0,87738.0,0.0115763]
[1766963614722,0.02415416,87757.0,87740.0,0.10294513]
[1766963615029,0.02415416,87756.0,87740.0,0.10294513]
[1766963615229,0.011403,87758.0,87740.0,0.10294513]
[1766963615432,0.02431547,87757.0,87740.0,0.10294513]
[1766963615626,0.02431547,87756.0,87740.0,0.10294513]
[1766963615824,0.011403,87758.0,87740.0,0.10294513]
[1766963616029,0.02431547,87757.0,87740.0,0.10294513]
[1766963616229,0.02431547,87756.0,87740.0,0.10294513]
[1766963616430,0.011403,87758.0,87740.0,0.10294513]
[1766963616631,0.02431528,87757.0,87740.0,0.10294513]
[1766963616932,0.02431528,87756.0,87740.0,0.10294513]
[1766963617129,0.011403,87758.0,87740.0,0.10294513]
[1766963617330,0.02431535,87757.0,87740.0,0.10294513]
[1766963617527,0.02431535,87756.0,87740.0,0.10294513]
[1766963617727,0.011403,87758.0,87740.0,0.10294513]
[1766963617927,0.02431529,87757.0,87740.0,0.10294513]
[1766963618128,0.02431529,87756.0,87740.0,0.10294513]
[1766963618323,0.011403,87758.0,87740.0,0.10294513]
[1766963618526,0.02431553,87757.0,87740.0,0.10294513]
[1766963618726,0.02431553,87756.0,87740.0,0.10294513]
[1766963618926,0.0114033,87756.0,87740.0,0.10294513]
[1766963620941,0.0114028,87759.0,87740.0,0.10294513]
[1766963621130,0.02431669,87758.0,87740.0,0.10294513]
[1766963621436,0.03571979,87757.0,87740.0,0.10294513]
[1766963621637,0.02431669,87756.0,87740.0,0.10294513]
[1766963626338,0.02431669,87756.0,87738.0,0.0001709]
[1766963626534,0.02431669,87755.0,87738.0,0.0001709]
[1766963626740,0.10294513,87750.0,87738.0,0.0001709]
[1766963627342,0.11434913,87750.0,87738.0,0.0001709]
[1766963628644,0.0114035,87754.0,87738.0,0.0001709]
[1766963630545,0.02433983,87753.0,87738.0,0.0001709]
[1766963630839,0.0114035,87754.0,87738.0,0.0001709]
[1766963631044,0.02433984,87753.0,87738.0,0.0001709]
[1766963631240,0.0114035,87754.0,87738.0,0.0001709]
[1766963631544,0.02434614,87753.0,87738.0,0.0001709]
[1766963631842,0.0114035,87754.0,87738.0,0.0001709]
[1766963631843,0.0572,87755.0,87738.0,0.0001709]
[1766963632036,0.10294513,87750.0,87738.0,0.0001709]
[1766963632340,0.0114038,87752.0,87738.0,0.0001709]
[1766963632540,0.02435728,87751.0,87738.0,0.0001709]
[1766963632741,0.0114038,87752.0,87738.0,0.0001709]
[1766963633052,0.02435728,87751.0,87738.0,0.0001709]
[1766963633247,0.0114038,87752.0,87738.0,0.0001709]
[1766963633449,0.02435749,87751.0,87738.0,0.0001709]
[1766963633638,0.0114038,87752.0,87738.0,0.0001709]
[1766963633840,0.02435749,87751.0,87738.0,0.0001709]
[1766963634033,0.11434913,87750.0,87738.0,0.0001709]
[1766963634243,0.10294513,87750.0,87735.0,0.15412]
[1766963634455,0.0243583,87749.0,87735.0,0.15412]
[1766963634746,0.02435961,87748.0,87735.0,0.15412]
[1766963634945,0.10294513,87750.0,87735.0,0.15412]
[1766963635247,0.02435961,87749.0,87735.0,0.15412]
[1766963635442,0.02435961,87748.0,87735.0,0.15412]
[1766963635638,0.11434913,87750.0,87735.0,0.15412]
[1766963635840,0.02461938,87749.0,87735.0,0.15412]
[1766963636039,0.02461938,87748.0,87735.0,0.15412]
[1766963636245,0.11434913,87750.0,87735.0,0.15412]
[1766963636444,0.02461652,87749.0,87735.0,0.15412]
[1766963636646,0.11434913,87750.0,87735.0,0.15412]
[1766963636832,0.02461652,87749.0,87735.0,0.15412]
[1766963637035,0.11434913,87750.0,87735.0,0.15412]
[1766963637332,0.02461652,87749.0,87735.0,0.15412]
[1766963637537,0.11434913,87750.0,87735.0,0.15412]
[1766963637737,0.02461441,87749.0,87735.0,0.15412]
[1766963637947,0.11434913,87750.0,87735.0,0.15412]
[1766963638149,0.02461441,87749.0,87735.0,0.15412]
[1766963638448,0.11434913,87750.0,87735.0,0.15412]
[1766963638650,0.02461274,87749.0,87735.0,0.15412]
[1766963638848,0.11434913,87750.0,87735.0,0.15412]
[1766963639052,0.02461274,87749.0,87735.0,0.15412]
[1766963639256,0.11434913,87750.0,87735.0,0.15412]
[1766963639551,0.02461137,87749.0,87735.0,0.15412]
[1766963639753,0.11434913,87750.0,87735.0,0.15412]
[1766963639945,0.02461137,87749.0,87735.0,0.15412]
[1766963640244,0.11434913,87750.0,87735.0,0.15412]
[1766963640450,0.02461117,87749.0,87735.0,0.15412]
[1766963640646,0.10294513,87750.0,87735.0,0.15412]
[1766963640846,0.02461117,87749.0,87740.0,0.10294513]
[1766963641051,0.0572,87750.0,87740.0,0.10294513]
[1766963641252,0.0572,87750.0,87736.0,0.0114057]
[1766963641446,0.0001709,87751.0,87740.0,0.10294513]
[1766963642152,0.10294513,87750.0,87734.0,0.00011386]
[1766963642352,0.0001709,87751.0,87741.0,0.01139]
[1766963643650,0.02460955,87750.0,87736.0,0.0572]
[1766963643958,0.0001709,87751.0,87736.0,0.0572]
[1766963644153,0.02460957,87750.0,87736.0,0.0572]
[1766963644352,0.0001709,87751.0,87736.0,0.0572]
[1766963644660,0.02460925,87750.0,87736.0,0.0572]
[1766963644847,0.0001709,87751.0,87736.0,0.0572]
[1766963645049,0.02460925,87750.0,87736.0,0.0572]
[1766963645348,0.02460925,87749.0,87736.0,0.0572]
[1766963645548,0.0001709,87751.0,87736.0,0.0572]
[1766963645749,0.00986215,87750.0,87736.0,0.0572]
[1766963645952,0.0001709,87751.0,87736.0,0.0572]
[1766963646768,0.01310705,87762.0,87736.0,0.0572]
[1766963646957,0.1655625,87761.0,87738.0,0.0114054]
[1766963647650,0.0114029,87758.0,87738.0,0.0114054]
[1766963647953,0.0115738,87758.0,87736.0,0.0572]
[1766963649764,0.0115738,87758.0,87737.0,0.0114056]
[1766963653167,0.0115738,87758.0,87739.0,0.0114053]
[1766963653368,0.0001709,87758.0,87739.0,0.0114053]
[1766963657869,0.02477601,87757.0,87739.0,0.0114053]
[1766963658173,0.02477601,87756.0,87739.0,0.0114053]
[1766963658362,0.02477601,87755.0,87739.0,0.0114053]
[1766963659874,0.0572,87754.0,87739.0,0.0114053]
[1766963660071,0.02477601,87753.0,87736.0,0.0572]
[1766963661173,0.02477601,87753.0,87737.0,0.0114056]
[1766963663170,0.02477601,87752.0,87737.0,0.0114056]
[1766963663371,0.02477601,87751.0,87737.0,0.0114056]
[1766963663560,0.02477601,87750.0,87737.0,0.0114056]
[1766963663765,0.02477601,87749.0,87737.0,0.0114056]
[1766963663965,0.02477601,87748.0,87737.0,0.0114056]
[1766963664166,0.0572,87754.0,87737.0,0.0114056]
[1766963664475,0.02476824,87753.0,87737.0,0.0114056]
[1766963664668,0.0572,87754.0,87737.0,0.0114056]
[1766963664669,0.02476824,87752.0,87737.0,0.0114056]
[1766963664973,0.02476896,87751.0,87737.0,0.0114056]
[1766963665175,0.02476896,87750.0,87737.0,0.0114056]
[1766963665375,0.02476896,87749.0,87737.0,0.0114056]
[1766963665570,0.02476896,87748.0,87737.0,0.0114056]
[1766963665773,0.0572,87754.0,87737.0,0.0114056]
[1766963666070,0.02476949,87753.0,87737.0,0.0114056]
[1766963666268,0.02476949,87752.0,87737.0,0.0114056]
[1766963666468,0.02476949,87751.0,87737.0,0.0114056]
[1766963666678,0.02476949,87750.0,87737.0,0.0114056]
[1766963666875,0.02476949,87749.0,87737.0,0.0114056]
[1766963667074,0.02476949,87748.0,87737.0,0.0114056]
[1766963667376,0.0572,87754.0,87737.0,0.0114056]
[1766963667575,0.02477085,87753.0,87737.0,0.0114056]
[1766963667770,0.0572,87754.0,87737.0,0.0114056]
[1766963667771,0.02477085,87752.0,87737.0,0.0114056]
[1766963667971,0.02477085,87751.0,87737.0,0.0114056]
[1766963668169,0.02477085,87750.0,87735.0,0.0114059]
[1766963668371,0.02477085,87749.0,87734.0,0.00011386]
[1766963668673,0.0572,87754.0,87734.0,0.00011386]
[1766963668674,0.0114043,87748.0,87734.0,0.00754386]
[1766963669068,0.0114038,87751.0,87734.0,0.00754386]
[1766963669379,0.02477168,87750.0,87734.0,0.00754386]
[1766963669578,0.02477168,87749.0,87734.0,0.00754386]
[1766963669779,0.0686034,87754.0,87734.0,0.01894976]
[1766963669968,0.02477248,87753.0,87734.0,0.01894976]
[1766963670169,0.02477248,87752.0,87734.0,0.01894976]
[1766963670368,0.02477248,87751.0,87734.0,0.01894976]
[1766963670567,0.02477248,87750.0,87734.0,0.01894976]
[1766963670768,0.02477248,87749.0,87734.0,0.01894976]
[1766963670968,0.0686034,87754.0,87734.0,0.01894976]
[1766963671169,0.02477136,87753.0,87734.0,0.01894976]
[1766963671369,0.02477136,87752.0,87734.0,0.01894976]
[1766963671578,0.02477136,87751.0,87734.0,0.01894976]
[1766963671779,0.02477136,87750.0,87734.0,0.01894976]
[1766963671979,0.02477136,87749.0,87734.0,0.01894976]
[1766963672180,0.0686034,87754.0,87734.0,0.01894976]
[1766963672379,0.02476973,87753.0,87734.0,0.01894976]
[1766963672580,0.0686034,87754.0,87734.0,0.01894976]
[1766963672581,0.02476973,87752.0,87734.0,0.01894976]
[1766963672784,0.02476973,87751.0,87734.0,0.01894976]
[1766963672970,0.02476973,87750.0,87734.0,0.01894976]
[1766963673170,0.02476973,87749.0,87734.0,0.01894976]
[1766963673373,0.0686034,87754.0,87734.0,0.01894976]
[1766963673581,0.02476911,87753.0,87734.0,0.01894976]
[1766963673783,0.02476911,87752.0,87734.0,0.01894976]
[1766963673981,0.02476911,87751.0,87734.0,0.01894976]
[1766963674174,0.0686034,87754.0,87734.0,0.01894976]
[1766963674175,0.02476911,87750.0,87734.0,0.01894976]
[1766963674374,0.02476911,87749.0,87734.0,0.01894976]
[1766963674575,0.0686034,87754.0,87734.0,0.01894976]
[1766963674875,0.02476858,87753.0,87734.0,0.01894976]
[1766963675075,0.02476858,87752.0,87734.0,0.01894976]
[1766963675276,0.02476858,87751.0,87734.0,0.01894976]
[1766963675476,0.02476858,87750.0,87734.0,0.01894976]
[1766963675676,0.02476858,87749.0,87734.0,0.01894976]
[1766963675876,0.0686034,87754.0,87734.0,0.01894976]
[1766963676078,0.02481804,87753.0,87734.0,0.01894976]
[1766963676282,0.02481804,87752.0,87734.0,0.01894976]
[1766963676477,0.02481804,87751.0,87734.0,0.01894976]
[1766963676677,0.02481804,87750.0,87734.0,0.01894976]
[1766963676877,0.02481804,87749.0,87734.0,0.01894976]
[1766963677079,0.0686034,87754.0,87734.0,0.01894976]
[1766963677281,0.02481737,87753.0,87734.0,0.01894976]
[1766963677472,0.02481737,87752.0,87734.0,0.01894976]
[1766963677680,0.02481737,87751.0,87734.0,0.01894976]
[1766963677881,0.02481737,87750.0,87734.0,0.01894976]
[1766963678080,0.02481737,87749.0,87734.0,0.01894976]
[1766963678282,0.0686034,87754.0,87734.0,0.01894976]
[1766963678481,0.0248171,87753.0,87734.0,0.01894976]
[1766963678682,0.0248171,87752.0,87734.0,0.01894976]
[1766963678886,0.0248171,87751.0,87734.0,0.01894976]
[1766963679076,0.0248171,87750.0,87734.0,0.01894976]
[1766963679277,0.0248171,87749.0,87734.0,0.01894976]
[1766963679477,0.0248171,87748.0,87734.0,0.01894976]
[1766963679679,0.0248171,87747.0,87734.0,0.01894976]
[1766963679882,0.0248171,87746.0,87734.0,0.01894976]
[1766963680187,0.0686034,87754.0,87736.0,0.0114056]
[1766963680387,0.0248167,87753.0,87736.0,0.0114056]
[1766963680594,0.0248167,87752.0,87736.0,0.0114056]
[1766963680776,0.0248167,87751.0,87736.0,0.0114056]
[1766963680974,0.0248167,87750.0,87736.0,0.0114056]
[1766963681192,0.0248167,87749.0,87736.0,0.0114056]
[1766963681489,0.0248167,87748.0,87736.0,0.0114056]
[1766963681687,0.0248167,87747.0,87736.0,0.0114056]
[1766963681889,0.0248167,87746.0,87736.0,0.0114056]
[1766963682089,0.0686034,87754.0,87736.0,0.0114056]
[1766963682289,0.02481649,87753.0,87736.0,0.0114056]
[1766963682490,0.02481649,87752.0,87736.0,0.0114056]
[1766963682791,0.02481649,87751.0,87736.0,0.0114056]
[1766963683090,0.02481649,87750.0,87736.0,0.0114056]
[1766963683279,0.02481649,87749.0,87736.0,0.0114056]
[1766963683476,0.02481649,87748.0,87736.0,0.0114056]
[1766963683679,0.02481649,87747.0,87736.0,0.0114056]
[1766963683882,0.02481649,87746.0,87736.0,0.0114056]
[1766963684082,0.0686034,87754.0,87736.0,0.0114056]
[1766963684298,0.02481649,87753.0,87736.0,0.0114056]
[1766963684590,0.02481649,87752.0,87736.0,0.0114056]
[1766963684889,0.02481649,87751.0,87736.0,0.0114056]
[1766963685092,0.02481649,87750.0,87736.0,0.0114056]
[1766963685285,0.0686034,87754.0,87736.0,0.0114056]
[1766963685286,0.02481649,87749.0,87736.0,0.0114056]
[1766963685486,0.02481649,87748.0,87736.0,0.0114056]
[1766963685688,0.02481649,87747.0,87736.0,0.0114056]
[1766963685883,0.02481649,87746.0,87736.0,0.0114056]
[1766963686083,0.0686034,87754.0,87736.0,0.0114056]
[1766963686283,0.02481671,87753.0,87736.0,0.0114056]
[1766963686489,0.02481671,87752.0,87736.0,0.0114056]
[1766963686684,0.02481671,87751.0,87736.0,0.0114056]
[1766963686883,0.02481671,87750.0,87736.0,0.0114056]
[1766963687095,0.02481671,87749.0,87736.0,0.0114056]
[1766963687286,0.02481671,87748.0,87736.0,0.0114056]
[1766963687485,0.02481671,87747.0,87736.0,0.0114056]
[1766963687692,0.02481671,87746.0,87736.0,0.0114056]
[1766963687901,0.0686034,87754.0,87736.0,0.0114056]
[1766963688084,0.02481689,87753.0,87736.0,0.0114056]
[1766963688380,0.02481689,87752.0,87736.0,0.0114056]
[1766963688582,0.02481689,87751.0,87736.0,0.0114056]
[1766963688780,0.02481689,87750.0,87736.0,0.0114056]
[1766963688979,0.02481689,87749.0,87736.0,0.0114056]
[1766963689184,0.02481689,87748.0,87736.0,0.0114056]
[1766963689384,0.02481689,87747.0,87736.0,0.0114056]
[1766963689579,0.0686034,87754.0,87736.0,0.0114056]
[1766963689580,0.02481689,87746.0,87736.0,0.0114056]
[1766963689782,0.0686034,87754.0,87736.0,0.0114056]
[1766963689997,0.02481744,87753.0,87736.0,0.0114056]
[1766963690294,0.02481744,87752.0,87734.0,0.00754386]
[1766963690495,0.02481744,87751.0,87734.0,0.00754386]
[1766963690688,0.02481744,87750.0,87734.0,0.00011386]
[1766963690889,0.02481744,87749.0,87734.0,0.00011386]
[1766963691088,0.02481744,87748.0,87734.0,0.00011386]
[1766963691289,0.02481744,87747.0,87734.0,0.00011386]
[1766963691585,0.02481744,87746.0,87734.0,0.00011386]
[1766963691803,0.0686034,87754.0,87734.0,0.00011386]
[1766963691990,0.02481818,87753.0,87734.0,0.00011386]
[1766963692201,0.02481818,87752.0,87734.0,0.00011386]
[1766963692397,0.0686034,87754.0,87734.0,0.00011386]
[1766963692398,0.02481818,87751.0,87734.0,0.00011386]
[1766963692598,0.02481818,87750.0,87734.0,0.00011386]
[1766963692801,0.02481818,87749.0,87734.0,0.00011386]
[1766963692999,0.02481818,87748.0,87734.0,0.00011386]
[1766963693200,0.02481818,87747.0,87734.0,0.00011386]
[1766963693391,0.02481818,87746.0,87734.0,0.00011386]
[1766963693592,0.0114039,87751.0,87734.0,0.00011386]
[1766963693792,0.02481917,87750.0,87735.0,0.01139]
[1766963693987,0.02481917,87749.0,87735.0,0.01139]
[1766963694202,0.02481917,87748.0,87735.0,0.01139]
[1766963694402,0.02481917,87747.0,87735.0,0.01139]
[1766963694599,0.02481917,87746.0,87735.0,0.01139]
[1766963694900,0.0114039,87751.0,87735.0,0.01139]
[1766963695097,0.02481981,87750.0,87735.0,0.01139]
[1766963695400,0.02481981,87749.0,87735.0,0.01139]
[1766963695603,0.0686035,87754.0,87735.0,0.01139]
[1766963695793,0.02482059,87753.0,87735.0,0.01139]
[1766963695996,0.02482059,87752.0,87735.0,0.01139]
[1766963696195,0.02482059,87751.0,87735.0,0.01139]
[1766963696403,0.02482059,87750.0,87735.0,0.01139]
[1766963696601,0.02482059,87749.0,87735.0,0.01139]
[1766963696803,0.02482059,87748.0,87735.0,0.01139]
[1766963696997,0.02482059,87747.0,87735.0,0.01139]
[1766963697199,0.02482059,87746.0,87738.0,0.0114054]
[1766963697394,0.0001709,87758.0,87735.0,0.01139]
[1766963697599,0.15412,87757.0,87735.0,0.01139]
[1766963697801,0.15412,87757.0,87743.0,0.0114048]
[1766963704110,0.15412,87757.0,87739.0,0.0114053]
[1766963704303,0.15412,87757.0,87735.0,0.01139]
[1766963704304,0.0114037,87752.0,87735.0,0.01139]
[1766963705102,0.0114033,87755.0,87735.0,0.01139]
[1766963705303,0.0114033,87755.0,87736.0,0.0114057]
[1766963709408,0.08185516,87754.0,87740.0,0.10300494]
[1766963709603,0.02469516,87753.0,87740.0,0.10300494]
[1766963709803,0.02469516,87752.0,87740.0,0.10300494]
[1766963710003,0.02469516,87751.0,87740.0,0.10300494]
[1766963710313,0.02469516,87750.0,87740.0,0.10300494]
[1766963710521,0.02469516,87749.0,87736.0,0.0114057]
[1766963710809,0.02469516,87748.0,87736.0,0.0114057]
[1766963711010,0.05716,87754.0,87736.0,0.0114057]
[1766963711215,0.02469519,87753.0,87736.0,0.0114057]
[1766963711413,0.02469519,87752.0,87736.0,0.0114057]
[1766963711714,0.02469519,87751.0,87736.0,0.0114057]
[1766963711915,0.02469519,87750.0,87736.0,0.0114057]
[1766963712111,0.02469519,87749.0,87736.0,0.0114057]
[1766963712312,0.02469519,87748.0,87736.0,0.0114057]
[1766963712513,0.05716,87754.0,87736.0,0.0114057]
[1766963712719,0.0246953,87753.0,87736.0,0.0114057]
[1766963712916,0.0246953,87752.0,87735.0,0.01139]
[1766963713118,0.0246953,87751.0,87735.0,0.01139]
[1766963713324,0.0246953,87750.0,87735.0,0.0227958]
[1766963713521,0.0246953,87749.0,87735.0,0.0227958]
[1766963713711,0.0246953,87748.0,87735.0,0.0227958]
[1766963713912,0.05716,87754.0,87735.0,0.0227958]
[1766963714114,0.02469538,87753.0,87735.0,0.0227958]
[1766963714324,0.02469538,87752.0,87735.0,0.0227958]
[1766963714513,0.02469538,87751.0,87735.0,0.0227958]
[1766963714716,0.02469538,87750.0,87735.0,0.0227958]
[1766963714916,0.02469538,87749.0,87735.0,0.0114058]
[1766963715115,0.02469538,87748.0,87735.0,0.0114058]
[1766963715414,0.05716,87754.0,87735.0,0.0114058]
[1766963715616,0.0246956,87753.0,87735.0,0.0114058]
[1766963715816,0.0246956,87752.0,87735.0,0.0114058]
[1766963716016,0.0246956,87751.0,87735.0,0.0114058]
[1766963716220,0.0246956,87750.0,87735.0,0.0114058]
[1766963716421,0.0246956,87749.0,87735.0,0.0114058]
[1766963716622,0.0246956,87748.0,87735.0,0.0114058]
[1766963716822,0.0114036,87753.0,87735.0,0.0114058]
[1766963717125,0.02469575,87752.0,87735.0,0.0114058]
[1766963717318,0.02469575,87751.0,87735.0,0.0114058]
[1766963717519,0.02469575,87750.0,87735.0,0.0114058]
[1766963717715,0.02469575,87749.0,87735.0,0.0114058]
[1766963717916,0.02469575,87748.0,87735.0,0.0114058]
[1766963718213,0.0114036,87753.0,87735.0,0.0114058]
[1766963718411,0.02469611,87752.0,87736.0,0.01139]
[1766963718610,0.02469611,87751.0,87736.0,0.01139]
[1766963718816,0.02469611,87750.0,87736.0,0.01139]
[1766963719026,0.02469611,87749.0,87736.0,0.01139]
[1766963719327,0.02469611,87748.0,87736.0,0.01139]
[1766963719520,0.0114036,87753.0,87736.0,0.01139]
[1766963719719,0.02469633,87752.0,87737.0,0.0114056]
[1766963719924,0.02469633,87751.0,87737.0,0.0114056]
[1766963720128,0.02469633,87750.0,87737.0,0.0114056]
[1766963720429,0.02469633,87749.0,87737.0,0.0114056]
[1766963720727,0.02469633,87748.0,87737.0,0.0114056]
[1766963721027,0.05716,87754.0,87737.0,0.0114056]
[1766963721229,0.02469657,87753.0,87737.0,0.0114056]
[1766963721427,0.02469657,87752.0,87737.0,0.0114056]
[1766963721727,0.02469657,87751.0,87737.0,0.0114056]
[1766963721918,0.02469657,87750.0,87737.0,0.0114056]
[1766963722118,0.02469657,87749.0,87737.0,0.0114056]
[1766963722427,0.02469657,87748.0,87737.0,0.0114056]
[1766963722625,0.05716,87754.0,87737.0,0.0114056]
[1766963722927,0.02469717,87753.0,87737.0,0.0114056]
[1766963723225,0.02469717,87752.0,87737.0,0.0114056]
[1766963723427,0.02469717,87751.0,87737.0,0.0114056]
[1766963723621,0.02469717,87750.0,87737.0,0.0114056]
[1766963723821,0.02469717,87749.0,87737.0,0.0114056]
[1766963724021,0.02469717,87748.0,87737.0,0.0114056]
[1766963724323,0.05716,87754.0,87737.0,0.0114056]
[1766963724522,0.02469795,87753.0,87737.0,0.0114056]
[1766963724724,0.02469795,87752.0,87737.0,0.0114056]
[1766963724923,0.02469795,87751.0,87737.0,0.0114056]
[1766963725122,0.05716,87754.0,87737.0,0.0114056]
[1766963725123,0.02469795,87750.0,87737.0,0.0114056]
[1766963725322,0.02469795,87749.0,87737.0,0.0114056]
[1766963725518,0.02469795,87748.0,87737.0,0.0114056]
[1766963725716,0.05716,87754.0,87737.0,0.0114056]
[1766963725918,0.02469843,87753.0,87737.0,0.0114056]
[1766963726117,0.02469843,87752.0,87737.0,0.0114056]
[1766963726313,0.02469843,87751.0,87737.0,0.0114056]
[1766963726521,0.02469843,87750.0,87737.0,0.0114056]
[1766963726713,0.02469843,87749.0,87737.0,0.0114056]
[1766963726918,0.02469843,87748.0,87737.0,0.0114056]
[1766963727118,0.05716,87754.0,87737.0,0.0114056]
[1766963727327,0.05716,87754.0,87736.0,0.01139]
[1766963727328,0.02469965,87753.0,87743.0,0.0114048]
[1766963727529,0.02469965,87752.0,87743.0,0.0114048]
[1766963727725,0.02469965,87752.0,87740.0,0.10300494]
[1766963727726,0.06140631,87767.0,87740.0,0.20600988]
[1766963728028,0.06368493,87773.0,87759.0,0.0114027]
[1766963728229,0.00227862,87773.0,87760.0,0.10300494]
[1766963733723,0.09696,87787.0,87771.0,0.0114011]
[1766963733916,0.05716,87786.0,87771.0,0.0114011]
[1766963734333,0.00348171,87790.0,87771.0,0.0114011]
[1766963734529,0.15412,87789.0,87770.0,0.10300494]
[1766963734723,0.0001709,87788.0,87770.0,0.10300494]
[1766963735121,0.0001709,87788.0,87770.0,0.0114013]
[1766963735432,0.15412,87787.0,87770.0,0.11440624]
[1766963737933,0.15412,87787.0,87771.0,0.05716]
[1766963738729,0.0114002,87779.0,87771.0,0.02116]